fUST/lending_fUST_20250909
["ID","MTS","AMOUNT","RATE_DAILY","PERIOD"]
[384368056,1757351487405,-480.0,0.00015342,2]
[384368057,1757351487415,-480.0,0.00015342,2]
[384368058,1757351487425,-480.0,0.00015342,2]
[384368059,1757351487437,-480.0,0.00015342,2]
[384368060,1757351487447,-480.0,0.00015342,2]
[384368061,1757351487461,-480.0,0.00015342,2]
[384368062,1757351487473,-480.0,0.00015342,2]
[384368063,1757351487484,-4392.69,0.00015342,2]
[384368064,1757351487494,-480.0,0.00015342,2]
[384368065,1757351487504,-480.0,0.00015342,2]
[384368066,1757351487515,-2604.44,0.00015342,2]
[384368067,1757351487525,-550.12,0.00015342,2]
[384368068,1757351487536,-480.0,0.00015342,2]
[384368069,1757351487547,-480.0,0.00015342,2]
[384368070,1757351487557,-480.0,0.00015342,2]
[384368071,1757351487567,-480.0,0.00015342,2]
[384368072,1757351487577,-169.75783698,0.00015342,2]
[384368073,1757351487587,-480.0,0.00015342,2]
[384368074,1757351487598,-154.46230683,0.00015342,2]
[384368075,1757351487608,-480.0,0.00015342,2]
[384368076,1757351487618,-487.11311724,0.00015342,2]
[384368077,1757351487629,-480.0,0.00015342,2]
[384368078,1757351487639,-480.0,0.00015342,2]
[384368079,1757351487649,-528.94,0.00015342,2]
[384368080,1757351487659,-480.0,0.00015342,2]
[384368081,1757351487669,-480.0,0.00015342,2]
[384368082,1757351487678,-480.0,0.00015342,2]
[384368083,1757351487690,-720.0,0.00015368,2]
[384368084,1757351487699,-1112.30654963,0.00015368,2]
[384368085,1757351487709,-1010.2739433,0.00015368,2]
[384368086,1757351487719,-852.65014999,0.00015368,2]
[384368087,1757351487730,-1000.0,0.00015368,2]
[384368088,1757351487740,-4899.0,0.00015443,2]
[384368089,1757351487751,-652.0,0.00015589,2]
[384368090,1757351487978,-500.0,0.00015615,2]
[384368091,1757351487989,-200.0,0.00015615,2]
[384368092,1757351488000,-500.0,0.00015616,2]
[384368093,1757351488018,-350.3376387,0.00015616,2]
[384368094,1757351488027,-480.0,0.00015616,2]
[384368095,1757351488038,-480.0,0.00015616,2]
[384368096,1757351488047,-183.81106318,0.00015616,2]
[384368097,1757351488058,-480.0,0.00015616,2]
[384368098,1757351488068,-480.0,0.00015616,2]
[384368099,1757351488078,-480.0,0.00015616,2]
[384368100,1757351488087,-480.0,0.00015616,2]
[384368101,1757351488097,-480.0,0.00015616,2]
[384368102,1757351488107,-480.0,0.00015616,2]
[384368103,1757351488116,-253.23714203,0.00015616,2]
[384368104,1757351488127,-490.45077151,0.00015616,2]
[384368105,1757351488137,-480.0,0.00015616,2]
[384368106,1757351488147,-480.0,0.00015616,2]
[384368107,1757351488158,-480.0,0.00015616,2]
[384368108,1757351488168,-224.98120831,0.00015616,2]
[384368109,1757351488178,-285.53717567,0.00015616,2]
[384368110,1757351488188,-480.0,0.00015616,2]
[384368111,1757351488199,-480.0,0.00015616,2]
[384368112,1757351488209,-480.0,0.00015616,2]
[384368113,1757351488219,-480.0,0.00015616,2]
[384368114,1757351488229,-480.0,0.00015616,2]
[384368115,1757351488239,-480.0,0.00015616,2]
[384368116,1757351488248,-480.0,0.00015616,2]
[384368117,1757351488258,-480.0,0.00015616,2]
[384368118,1757351488268,-480.0,0.00015616,2]
[384368119,1757351488278,-480.0,0.00015616,2]
[384368120,1757351488288,-480.0,0.00015616,2]
[384368121,1757351488298,-545.11,0.00015616,2]
[384368122,1757351488307,-480.0,0.00015616,2]
[384368123,1757351488317,-480.0,0.00015616,2]
[384368124,1757351488326,-200.17362594,0.00015616,2]
[384368125,1757351488336,-480.87,0.00015616,2]
[384368126,1757351488346,-480.0,0.00015616,2]
[384368127,1757351488356,-480.0,0.00015616,2]
[384368128,1757351488365,-480.0,0.00015616,2]
[384368129,1757351488375,-480.0,0.00015616,2]
[384368130,1757351488385,-481.88639865,0.00015616,2]
[384368131,1757351488394,-480.0,0.00015616,2]
[384368132,1757351488404,-480.0,0.00015616,2]
[384368133,1757351488415,-480.0,0.00015616,2]
[384368134,1757351488424,-480.0,0.00015616,2]
[384368135,1757351488435,-453.49260607,0.00015616,2]
[384368136,1757351488445,-463.04332319,0.00015616,2]
[384368137,1757351488454,-480.0,0.00015616,2]
[384368138,1757351488464,-480.0,0.00015616,2]
[384368139,1757351488477,-300.76313853,0.00015616,2]
[384368140,1757351488487,-541.57,0.00015616,2]
[384368141,1757351488497,-480.0,0.00015616,2]
[384368142,1757351488506,-480.0,0.00015616,2]
[384368143,1757351488516,-480.0,0.00015616,2]
[384368144,1757351488525,-480.0,0.00015616,2]
[384368145,1757351488535,-480.0,0.00015616,2]
[384368146,1757351488549,-700.96,0.00015616,2]
[384368147,1757351488559,-480.0,0.00015616,2]
[384368148,1757351488569,-480.0,0.00015616,2]
[384368149,1757351488579,-480.0,0.00015616,2]
[384368150,1757351488589,-480.0,0.00015616,2]
[384368151,1757351488599,-480.0,0.00015616,2]
[384368152,1757351488608,-480.0,0.00015616,2]
[384368153,1757351488619,-480.0,0.00015616,2]
[384368154,1757351488629,-480.0,0.00015616,2]
[384368155,1757351488639,-480.0,0.00015616,2]
[384368156,1757351488648,-480.0,0.00015616,2]
[384368157,1757351488658,-480.0,0.00015616,2]
[384368158,1757351488668,-480.0,0.00015616,2]
[384368159,1757351488678,-480.0,0.00015616,2]
[384368160,1757351488688,-480.0,0.00015616,2]
[384368161,1757351488698,-480.0,0.00015616,2]
[384368162,1757351488707,-580.49,0.00015616,2]
[384368163,1757351488717,-494.53659928,0.00015616,2]
[384368164,1757351488726,-480.0,0.00015616,2]
[384368165,1757351488736,-480.0,0.00015616,2]
[384368166,1757351488754,-480.0,0.00015616,2]
[384368167,1757351488764,-480.0,0.00015616,2]
[384368168,1757351488774,-480.0,0.00015616,2]
[384368169,1757351488784,-608.72,0.00015616,2]
[384368170,1757351488793,-492.70596886,0.00015616,2]
[384368171,1757351488803,-480.0,0.00015616,2]
[384368172,1757351488813,-480.0,0.00015616,2]
[384368173,1757351488823,-512.24,0.00015616,2]
[384368174,1757351488834,-480.0,0.00015616,2]
[384368175,1757351488843,-480.0,0.00015616,2]
[384368176,1757351488854,-480.0,0.00015616,2]
[384368177,1757351488863,-480.0,0.00015616,2]
[384368178,1757351488874,-480.0,0.00015616,2]
[384368179,1757351488884,-480.0,0.00015616,2]
[384368180,1757351488895,-730.82,0.00015616,2]
[384368181,1757351488904,-480.0,0.00015616,2]
[384368182,1757351488914,-487.28065363,0.00015616,2]
[384368183,1757351488925,-480.0,0.00015616,2]
[384368184,1757351488935,-480.0,0.00015616,2]
[384368185,1757351488945,-480.0,0.00015616,2]
[384368186,1757351488954,-480.0,0.00015616,2]
[384368187,1757351488964,-480.0,0.00015616,2]
[384368188,1757351488973,-480.0,0.00015616,2]
[384368189,1757351488983,-411.53344369,0.00015616,2]
[384368190,1757351488992,-480.0,0.00015616,2]
[384368191,1757351489002,-480.0,0.00015616,2]
[384368192,1757351489012,-480.0,0.00015616,2]
[384368193,1757351489022,-480.0,0.00015616,2]
[384368194,1757351489031,-480.0,0.00015616,2]
[384368195,1757351489042,-480.0,0.00015616,2]
[384368196,1757351489052,-480.0,0.00015616,2]
[384368197,1757351489061,-480.0,0.00015616,2]
[384368198,1757351489071,-480.0,0.00015616,2]
[384368199,1757351489080,-480.0,0.00015616,2]
[384368200,1757351489090,-480.0,0.00015616,2]
[384368201,1757351489099,-487.61546303,0.00015616,2]
[384368202,1757351489109,-480.0,0.00015616,2]
[384368203,1757351489119,-480.0,0.00015616,2]
[384368204,1757351489128,-480.0,0.00015616,2]
[384368205,1757351489138,-480.0,0.00015616,2]
[384368206,1757351489148,-480.0,0.00015616,2]
[384368207,1757351489158,-480.0,0.00015616,2]
[384368208,1757351489168,-480.0,0.00015616,2]
[384368209,1757351489178,-480.0,0.00015616,2]
[384368210,1757351489188,-480.0,0.00015616,2]
[384368211,1757351489197,-480.0,0.00015616,2]
[384368212,1757351489207,-480.0,0.00015616,2]
[384368213,1757351489216,-480.0,0.00015616,2]
[384368214,1757351489226,-480.0,0.00015616,2]
[384368215,1757351489236,-480.0,0.00015616,2]
[384368216,1757351489245,-480.0,0.00015616,2]
[384368217,1757351489255,-480.0,0.00015616,2]
[384368218,1757351489264,-345.58844265,0.00015616,2]
[384368219,1757351489276,-480.0,0.00015616,2]
[384368220,1757351489286,-480.0,0.00015616,2]
[384368221,1757351489295,-480.0,0.00015616,2]
[384368222,1757351489305,-599.11,0.00015616,2]
[384368223,1757351489315,-447.79559518,0.00015616,2]
[384368224,1757351489325,-480.0,0.00015616,2]
[384368225,1757351489335,-480.0,0.00015616,2]
[384368226,1757351489345,-480.0,0.00015616,2]
[384368227,1757351489355,-480.0,0.00015616,2]
[384368228,1757351489365,-2376.6,0.00015616,2]
[384368229,1757351489375,-2170.94,0.00015616,2]
[384368230,1757351489385,-480.0,0.00015616,2]
[384368231,1757351489395,-480.0,0.00015616,2]
[384368232,1757351489405,-480.0,0.00015616,2]
[384368233,1757351489415,-480.0,0.00015616,2]
[384368234,1757351489425,-480.0,0.00015616,2]
[384368235,1757351489436,-480.0,0.00015616,2]
[384368236,1757351489445,-480.0,0.00015616,2]
[384368237,1757351489455,-2787.29,0.00015616,2]
[384368238,1757351489470,-480.0,0.00015616,2]
[384368239,1757351489480,-1018.3,0.00015616,2]
[384368240,1757351489490,-480.0,0.00015616,2]
[384368241,1757351489499,-480.0,0.00015616,2]
[384368242,1757351489510,-480.0,0.00015616,2]
[384368243,1757351489521,-480.0,0.00015616,2]
[384368244,1757351489531,-510.64854726,0.00015616,2]
[384368245,1757351489540,-480.0,0.00015616,2]
[384368246,1757351489551,-480.0,0.00015616,2]
[384368247,1757351489560,-480.0,0.00015616,2]
[384368248,1757351489570,-480.0,0.00015616,2]
[384368249,1757351489579,-480.0,0.00015616,2]
[384368250,1757351489589,-480.0,0.00015616,2]
[384368251,1757351489598,-480.0,0.00015616,2]
[384368252,1757351489609,-480.0,0.00015616,2]
[384368253,1757351489618,-5914.99,0.00015616,2]
[384368254,1757351489628,-480.0,0.00015616,2]
[384368255,1757351489638,-1486.48,0.00015616,2]
[384368256,1757351489647,-480.0,0.00015616,2]
[384368257,1757351489657,-480.0,0.00015616,2]
[384368258,1757351489667,-480.0,0.00015616,2]
[384368259,1757351489677,-480.0,0.00015616,2]
[384368260,1757351489687,-480.0,0.00015616,2]
[384368261,1757351489697,-711.62,0.00015616,2]
[384368262,1757351489706,-1571.04,0.00015616,2]
[384368263,1757351489715,-480.0,0.00015616,2]
[384368264,1757351489724,-480.0,0.00015616,2]
[384368265,1757351489734,-480.0,0.00015616,2]
[384368266,1757351489744,-480.0,0.00015616,2]
[384368267,1757351489754,-480.0,0.00015616,2]
[384368268,1757351489763,-480.0,0.00015616,2]
[384368269,1757351489773,-480.0,0.00015616,2]
[384368270,1757351489783,-480.0,0.00015616,2]
[384368271,1757351489792,-480.0,0.00015616,2]
[384368272,1757351489802,-1415.05,0.00015616,2]
[384368273,1757351489811,-480.0,0.00015616,2]
[384368274,1757351489821,-480.0,0.00015616,2]
[384368275,1757351489831,-343.08887986,0.00015616,2]
[384368276,1757351489842,-971.88,0.00015616,2]
[384368277,1757351489851,-593.95531801,0.00015616,2]
[384368278,1757351489862,-480.0,0.00015616,2]
[384368279,1757351489872,-482.84,0.00015616,2]
[384368280,1757351489884,-480.0,0.00015616,2]
[384368281,1757351489894,-480.0,0.00015616,2]
[384368282,1757351489905,-480.0,0.00015616,2]
[384368283,1757351489916,-480.0,0.00015616,2]
[384368284,1757351489925,-480.0,0.00015616,2]
[384368285,1757351489935,-584.84569087,0.00015616,2]
[384368286,1757351489945,-480.0,0.00015616,2]
[384368287,1757351489955,-480.0,0.00015616,2]
[384368288,1757351489965,-480.0,0.00015616,2]
[384368289,1757351489975,-480.0,0.00015616,2]
[384368290,1757351489985,-480.0,0.00015616,2]
[384368291,1757351489995,-480.0,0.00015616,2]
[384368292,1757351490004,-480.0,0.00015616,2]
[384368293,1757351490014,-1223.16,0.00015616,2]
[384368294,1757351490024,-480.0,0.00015616,2]
[384368295,1757351490035,-223.11885069,0.00015616,2]
[384368296,1757351490045,-586.99,0.00015616,2]
[384368297,1757351490055,-480.0,0.00015616,2]
[384368298,1757351490063,-480.0,0.00015616,2]
[384368299,1757351490074,-1000.0,0.00015616,2]
[384368300,1757351490084,-480.0,0.00015616,2]
[384368301,1757351490095,-480.0,0.00015616,2]
[384368302,1757351490104,-480.0,0.00015616,2]
[384368303,1757351490115,-480.0,0.00015616,2]
[384368304,1757351490126,-480.0,0.00015616,2]
[384368305,1757351490135,-480.0,0.00015616,2]
[384368306,1757351490146,-575.58,0.00015616,2]
[384368307,1757351490156,-1087.36,0.00015616,2]
[384368308,1757351490165,-480.0,0.00015616,2]
[384368309,1757351490175,-480.0,0.00015616,2]
[384368310,1757351490186,-454.29477541,0.00015616,2]
[384368311,1757351490195,-480.0,0.00015616,2]
[384368312,1757351490206,-480.0,0.00015616,2]
[384368313,1757351490215,-480.0,0.00015616,2]
[384368314,1757351490225,-480.0,0.00015616,2]
[384368315,1757351490235,-480.0,0.00015616,2]
[384368316,1757351490246,-4392.69,0.00015616,2]
[384368317,1757351490256,-480.0,0.00015616,2]
[384368318,1757351490265,-480.0,0.00015616,2]
[384368319,1757351490275,-2604.44,0.00015616,2]
[384368320,1757351490286,-550.12,0.00015616,2]
[384368321,1757351490297,-480.0,0.00015616,2]
[384368322,1757351490306,-480.0,0.00015616,2]
[384368323,1757351490316,-480.0,0.00015616,2]
[384368324,1757351490326,-480.0,0.00015616,2]
[384368325,1757351490336,-480.0,0.00015616,2]
[384368326,1757351490346,-480.0,0.00015616,2]
[384368327,1757351490399,-480.0,0.00015616,2]
[384368328,1757351490409,-528.94,0.00015616,2]
[384368329,1757351490418,-480.0,0.00015616,2]
[384368330,1757351490428,-480.0,0.00015616,2]
[384368331,1757351490438,-480.0,0.00015616,2]
[384368332,1757351490449,-1500.0,0.00015616,2]
[384368333,1757351490460,-2000.0,0.00015616,2]
[384368334,1757351490471,-1746.38443221,0.00015616,2]
[384368335,1757351490482,-597.26678715,0.00015668,2]
[384368336,1757351490491,-1500.0,0.00015668,2]
[384368337,1757351490501,-500.0,0.00015668,2]
[384368338,1757351490511,-1500.0,0.00015668,2]
[384368339,1757351490521,-1500.0,0.00015668,2]
[384368340,1757351490531,-1389.75179488,0.00015668,2]
[384368341,1757351490540,-1500.0,0.00015668,2]
[384368342,1757351490551,-1500.0,0.00015668,2]
[384368343,1757351490561,-1500.0,0.00015668,2]
[384368344,1757351490571,-1500.0,0.00015668,2]
[384368345,1757351490580,-1500.0,0.00015668,2]
[384368346,1757351490590,-1500.0,0.00015668,2]
[384368347,1757351490599,-1902.13497513,0.0001578,2]
[384368348,1757351490608,-652.0,0.00015863,2]
[384368349,1757351490618,-160.0,0.00015881,2]
[384368350,1757351490627,-500.0,0.00015889,2]
[384368351,1757351490636,-500.0,0.0001589,2]
[384368352,1757351490646,-480.0,0.0001589,2]
[384368353,1757351490656,-480.0,0.0001589,2]
[384368354,1757351490665,-480.0,0.0001589,2]
[384368355,1757351490675,-480.0,0.0001589,2]
[384368356,1757351490684,-487.53390059,0.0001589,2]
[384368357,1757351490694,-480.0,0.0001589,2]
[384368358,1757351490703,-480.0,0.0001589,2]
[384368359,1757351490712,-480.0,0.0001589,2]
[384368360,1757351490722,-480.0,0.0001589,2]
[384368361,1757351490730,-480.0,0.0001589,2]
[384368362,1757351490739,-480.0,0.0001589,2]
[384368363,1757351490751,-252.26,0.0001589,2]
[384368364,1757351490760,-480.0,0.0001589,2]
[384368365,1757351490769,-609.35562071,0.0001589,2]
[384368366,1757351490779,-480.0,0.0001589,2]
[384368367,1757351490789,-480.0,0.0001589,2]
[384368368,1757351490798,-480.0,0.0001589,2]
[384368369,1757351490807,-480.0,0.0001589,2]
[384368370,1757351490818,-545.11,0.0001589,2]
[384368371,1757351490827,-480.0,0.0001589,2]
[384368372,1757351490836,-480.0,0.0001589,2]
[384368373,1757351490845,-480.87,0.0001589,2]
[384368374,1757351490855,-480.0,0.0001589,2]
[384368375,1757351490864,-480.0,0.0001589,2]
[384368376,1757351490874,-480.0,0.0001589,2]
[384368377,1757351490883,-480.0,0.0001589,2]
[384368378,1757351490893,-480.0,0.0001589,2]
[384368379,1757351490902,-501.36615761,0.0001589,2]
[384368380,1757351490913,-480.0,0.0001589,2]
[384368381,1757351490923,-480.0,0.0001589,2]
[384368382,1757351490932,-480.0,0.0001589,2]
[384368383,1757351490941,-480.0,0.0001589,2]
[384368384,1757351490951,-541.57,0.0001589,2]
[384368385,1757351490961,-480.0,0.0001589,2]
[384368386,1757351490971,-480.0,0.0001589,2]
[384368387,1757351490981,-480.0,0.0001589,2]
[384368388,1757351490991,-480.0,0.0001589,2]
[384368389,1757351491001,-492.16983846,0.0001589,2]
[384368390,1757351491011,-700.96,0.0001589,2]
[384368391,1757351491020,-480.0,0.0001589,2]
[384368392,1757351491029,-480.0,0.0001589,2]
[384368393,1757351491038,-480.0,0.0001589,2]
[384368394,1757351491047,-480.0,0.0001589,2]
[384368395,1757351491056,-480.0,0.0001589,2]
[384368396,1757351491064,-480.0,0.0001589,2]
[384368397,1757351491072,-480.0,0.0001589,2]
[384368398,1757351491081,-480.0,0.0001589,2]
[384368399,1757351491089,-480.0,0.0001589,2]
[384368400,1757351491098,-372.73,0.0001589,2]
[384368401,1757351491107,-480.0,0.0001589,2]
[384368402,1757351491117,-480.0,0.0001589,2]
[384368403,1757351491126,-480.0,0.0001589,2]
[384368404,1757351491135,-480.0,0.0001589,2]
[384368405,1757351491145,-480.0,0.0001589,2]
[384368406,1757351491155,-580.49,0.0001589,2]
[384368407,1757351491164,-480.0,0.0001589,2]
[384368408,1757351491174,-480.0,0.0001589,2]
[384368409,1757351491183,-480.0,0.0001589,2]
[384368410,1757351491192,-480.0,0.0001589,2]
[384368411,1757351491201,-480.0,0.0001589,2]
[384368412,1757351491213,-608.72,0.0001589,2]
[384368413,1757351491222,-480.0,0.0001589,2]
[384368414,1757351491232,-480.0,0.0001589,2]
[384368415,1757351491242,-512.24,0.0001589,2]
[384368416,1757351491252,-480.0,0.0001589,2]
[384368417,1757351491261,-480.0,0.0001589,2]
[384368418,1757351491270,-480.0,0.0001589,2]
[384368419,1757351491280,-480.0,0.0001589,2]
[384368420,1757351491290,-480.0,0.0001589,2]
[384368421,1757351491300,-480.0,0.0001589,2]
[384368422,1757351491310,-730.82,0.0001589,2]
[384368423,1757351491319,-480.0,0.0001589,2]
[384368424,1757351491328,-480.0,0.0001589,2]
[384368425,1757351491338,-480.0,0.0001589,2]
[384368426,1757351491347,-480.0,0.0001589,2]
[384368427,1757351491358,-480.0,0.0001589,2]
[384368428,1757351491369,-480.0,0.0001589,2]
[384368429,1757351491378,-81.26975112,0.0001589,2]
[384368430,1757351491546,-156.15975589,0.0001589,2]
[384368431,1757351491555,-480.0,0.0001589,2]
[384368432,1757351491565,-480.0,0.0001589,2]
[384368433,1757351491574,-480.0,0.0001589,2]
[384368434,1757351491583,-480.0,0.0001589,2]
[384368435,1757351491593,-480.0,0.0001589,2]
[384368436,1757351491602,-480.0,0.0001589,2]
[384368437,1757351491612,-480.0,0.0001589,2]
[384368438,1757351491621,-480.0,0.0001589,2]
[384368439,1757351491630,-480.0,0.0001589,2]
[384368440,1757351491639,-480.0,0.0001589,2]
[384368441,1757351491648,-480.0,0.0001589,2]
[384368442,1757351491658,-480.0,0.0001589,2]
[384368443,1757351491667,-480.0,0.0001589,2]
[384368444,1757351491676,-480.0,0.0001589,2]
[384368445,1757351491685,-480.0,0.0001589,2]
[384368446,1757351491694,-490.75554798,0.0001589,2]
[384368447,1757351491703,-480.0,0.0001589,2]
[384368448,1757351491713,-480.0,0.0001589,2]
[384368449,1757351491723,-165.05867221,0.0001589,2]
[384368450,1757351491733,-480.0,0.0001589,2]
[384368451,1757351491744,-487.20596841,0.0001589,2]
[384368452,1757351491753,-480.0,0.0001589,2]
[384368453,1757351491763,-480.0,0.0001589,2]
[384368454,1757351491772,-480.0,0.0001589,2]
[384368455,1757351491782,-480.0,0.0001589,2]
[384368456,1757351491792,-480.0,0.0001589,2]
[384368457,1757351491802,-480.0,0.0001589,2]
[384368458,1757351491812,-480.0,0.0001589,2]
[384368459,1757351491821,-480.0,0.0001589,2]
[384368460,1757351491831,-480.0,0.0001589,2]
[384368461,1757351491840,-599.11,0.0001589,2]
[384368462,1757351491850,-480.0,0.0001589,2]
[384368463,1757351491860,-480.0,0.0001589,2]
[384368464,1757351491869,-480.0,0.0001589,2]
[384368465,1757351491879,-105.53072633,0.0001589,2]
[384368466,1757351491890,-451.64538587,0.0001589,2]
[384368467,1757351493029,666.0,0.00012831,2]
[384368469,1757351532715,157.923333,0.00025,30]
[384368478,1757351673090,172.07056799,0.00013163,2]
[384368479,1757351738255,7307.24482621,0.00012591,2]
[384368480,1757351738280,2692.75517379,0.00012591,2]
[384368482,1757351833458,381.821136,0.00025,30]
[384368483,1757351833744,381.821136,0.00025,30]
[384368484,1757351834062,381.821136,0.00025,30]
[384368485,1757351834381,381.821136,0.00025,30]
[384368486,1757351834687,381.821136,0.00025,30]
[384368487,1757351877791,242.0,0.00025,30]
[384368488,1757351919628,400.0,0.00015247,29]
[384368489,1757352003342,807.07719008,0.00023,30]
[384368490,1757352063122,-300.0,0.00013297,2]
[384368491,1757352083125,-4251.97915971,0.00013298,2]
[384368492,1757352093143,-10000.01,0.00013298,2]
[384368493,1757352136468,331.787355,0.00025,30]
[384368495,1757352151933,626.15492305,0.00013165,2]
[384368496,1757352165172,177.0,0.00013172,2]
[384368497,1757352174702,626.15492305,0.00013165,2]
[384368499,1757352221573,347.90641224,1e-06,2]
[384368500,1757352256166,5753.84516724,0.00013165,2]
[384368502,1757352398078,2361.7158347,0.00012569,2]
[384368504,1757352422052,107.23273972,0.00012543,2]
[384368505,1757352422079,892.76726028,0.00012543,2]
[384368508,1757352480012,300.0,0.00013164,2]
[384368509,1757352517180,4527.33937308,0.000212,30]
[384368510,1757352521031,3689.02321482,0.0002,30]
[384368511,1757352522003,64498.98359881,0.0002,60]
[384368512,1757352522271,282.24511068,0.0002045,30]
[384368575,1757352631959,-1517.13524208,0.00013297,2]
[384368577,1757352631973,-5.86475792,0.00013297,2]
[384368579,1757352631983,-300.0,0.00013431,2]
[384368580,1757352631993,-122.93524207,0.00013431,2]
[384368581,1757352632019,-177.06475793,0.00013431,2]
[384368582,1757352632029,-923.0,0.00013431,2]
[384368583,1757352632038,-4738.72951969,0.00013432,2]
[384368605,1757352639081,-1230.01990208,0.00013298,2]
[384368611,1757352640015,-583.66905001,0.00013298,2]
[384368632,1757352642942,-13453.41585517,0.00013298,2]
[384368633,1757352642954,-15267.10480726,0.00013432,2]
[384368634,1757352642965,-1249.57671594,0.00013467,2]
[384368635,1757352642975,-200.0,0.000135,2]
[384368636,1757352642986,-500.0,0.00013566,2]
[384368637,1757352642996,-509.20152628,0.00013566,2]
[384368638,1757352643007,-500.0,0.00013566,2]
[384368639,1757352643018,-500.0,0.00013566,2]
[384368640,1757352643028,-500.0,0.00013566,2]
[384368641,1757352643039,-480.0,0.00013566,2]
[384368642,1757352643049,-324.19102423,0.00013566,2]
[384368643,1757352643059,-500.0,0.00013566,2]
[384368644,1757352643070,-500.0,0.00013566,2]
[384368645,1757352643081,-468.5092278,0.00013566,2]
[384368646,1757352643091,-500.0,0.00013566,2]
[384368647,1757352643102,-614.13921926,0.00013566,2]
[384368648,1757352643112,-500.0,0.00013566,2]
[384368649,1757352643122,-500.0,0.00013566,2]
[384368650,1757352643135,-515.9840926,0.00013566,2]
[384368651,1757352643145,-500.0,0.00013566,2]
[384368652,1757352643157,-500.0,0.00013566,2]
[384368653,1757352643167,-500.0,0.00013566,2]
[384368654,1757352643178,-500.0,0.00013566,2]
[384368655,1757352643189,-500.0,0.00013566,2]
[384368656,1757352643199,-500.0,0.00013566,2]
[384368657,1757352643210,-500.0,0.00013566,2]
[384368658,1757352643220,-500.0,0.00013566,2]
[384368659,1757352643231,-500.0,0.00013566,2]
[384368660,1757352643242,-500.0,0.00013566,2]
[384368661,1757352643253,-500.0,0.00013566,2]
[384368662,1757352643264,-500.0,0.00013566,2]
[384368663,1757352643275,-500.0,0.00013566,2]
[384368664,1757352643286,-500.0,0.00013566,2]
[384368665,1757352643297,-500.0,0.00013566,2]
[384368666,1757352643307,-500.0,0.00013566,2]
[384368667,1757352643318,-500.0,0.00013566,2]
[384368668,1757352643328,-500.0,0.00013566,2]
[384368669,1757352643338,-168.44267695,0.00013566,2]
[384368670,1757352643348,-500.0,0.00013566,2]
[384368671,1757352643359,-500.0,0.00013566,2]
[384368672,1757352643369,-50000.0,0.00013567,2]
[384368673,1757352643379,-185.63685533,0.00013569,2]
[384368674,1757352643391,-423.33643677,0.00013569,2]
[384368675,1757352643401,-119627.36873438,0.0001357,2]
[384368676,1757352643412,-1070.75075759,0.00013573,2]
[384368677,1757352643422,-500.0,0.00013673,2]
[384368678,1757352643433,-500.0,0.00013673,2]
[384368679,1757352643443,-501.65488604,0.00013673,2]
[384368680,1757352643454,-500.0,0.00013673,2]
[384368681,1757352643464,-500.0,0.00013673,2]